[Event "Titled Tuesday Blitz August 16 Early 2022"]
[White "Sharapov, Evgeny"]
[Black "Volkov, Maksim"]
[WhiteFideId "14103133"]
[BlackFideId "54123070"]
[WhiteElo "2375"]
[BlackElo "2246"]
[Result "1-0"]
[Round "06"]
[TimeControl "180+2"]
[Date "2022.08.18"]
[WhiteClock "0:00:00"]
[BlackClock "0:00:00"]

1. e4 {[%clk 0:00:00]}  c5 {[%clk 0:00:00]} 2. Nf3 {[%clk 0:00:00]}  d6 {[%clk 0:00:00]} 3. d4 {[%clk 0:00:00]}  cxd4 {[%clk 0:00:00]} 4. Nxd4 {[%clk 0:00:00]}  Nf6 {[%clk 0:00:00]} 5. f3 {[%clk 0:00:00]}  a6 {[%clk 0:00:00]} 6. c4 {[%clk 0:00:00]}  Qc7 {[%clk 0:00:00]} 7. Nc3 {[%clk 0:00:00]}  e6 {[%clk 0:00:00]} 8. Be3 {[%clk 0:00:00]}  b6 {[%clk 0:00:00]} 9. Be2 {[%clk 0:00:00]}  Bb7 {[%clk 0:00:00]} 10. O-O {[%clk 0:00:00]}  Be7 {[%clk 0:00:00]} 11. Qd2 {[%clk 0:00:00]}  Nbd7 {[%clk 0:00:00]} 12. Rfc1 {[%clk 0:00:00]}  O-O {[%clk 0:00:00]} 13. Rab1 {[%clk 0:00:00]}  Rac8 {[%clk 0:00:00]} 14. b4 {[%clk 0:00:00]}  Rfe8 {[%clk 0:00:00]} 15. Nb3 {[%clk 0:00:00]}  Ne5 {[%clk 0:00:00]} 16. Na4 {[%clk 0:00:00]}  Nfd7 {[%clk 0:00:00]} 17. c5 {[%clk 0:00:00]}  b5 {[%clk 0:00:00]} 18. cxd6 {[%clk 0:00:00]}  Qxd6 {[%clk 0:00:00]} 19. Qxd6 {[%clk 0:00:00]}  Bxd6 {[%clk 0:00:00]} 20. Nac5 {[%clk 0:00:00]}  Nxc5 {[%clk 0:00:00]} 21. Nxc5 {[%clk 0:00:00]}  Bxc5 {[%clk 0:00:00]} 22. Rxc5 {[%clk 0:00:00]}  Nd7 {[%clk 0:00:00]} 23. Rxc8 {[%clk 0:00:00]}  Rxc8 {[%clk 0:00:00]} 24. Rc1 {[%clk 0:00:00]}  Rxc1+ {[%clk 0:00:00]} 25. Bxc1 {[%clk 0:00:00]}  f5 {[%clk 0:00:00]} 26. exf5 {[%clk 0:00:00]}  exf5 {[%clk 0:00:00]} 27. Kf2 {[%clk 0:00:00]}  Bd5 {[%clk 0:00:00]} 28. a3 {[%clk 0:00:00]}  Kf7 {[%clk 0:00:00]} 29. Ke3 {[%clk 0:00:00]}  Ke6 {[%clk 0:00:00]} 30. Kd4 {[%clk 0:00:00]}  h6 {[%clk 0:00:00]} 31. Bd3 {[%clk 0:00:00]}  Bc6 {[%clk 0:00:00]} 32. Bc2 {[%clk 0:00:00]}  g5 {[%clk 0:00:00]} 33. Bb3+ {[%clk 0:00:00]}  Kd6 {[%clk 0:00:00]} 34. h4 {[%clk 0:00:00]}  f4 {[%clk 0:00:00]} 35. hxg5 {[%clk 0:00:00]}  hxg5 {[%clk 0:00:00]} 36. Bb2 {[%clk 0:00:00]}  Ne5 {[%clk 0:00:00]} 37. Bc3 {[%clk 0:00:00]}  g4 {[%clk 0:00:00]} 38. fxg4 {[%clk 0:00:00]}  Bxg2 {[%clk 0:00:00]} 39. Bd2 {[%clk 0:00:00]}  f3 {[%clk 0:00:00]} 40. Be1 {[%clk 0:00:00]}  Nxg4 {[%clk 0:00:00]} 41. Bg3+ {[%clk 0:00:00]}  Kd7 {[%clk 0:00:00]} 42. Bd5 {[%clk 0:00:00]}  Nh2 {[%clk 0:00:00]} 43. Bxh2 {[%clk 0:00:00]}  Kc8 {[%clk 0:00:00]} 44. Bg3 {[%clk 0:00:00]}  Kd7 {[%clk 0:00:00]} 45. Ke3 {[%clk 0:00:00]}  Bh3 {[%clk 0:00:00]} 46. Bxf3 {[%clk 0:00:00]}  Kc8 {[%clk 0:00:00]} 47. Kd4 {[%clk 0:00:00]}  Be6 {[%clk 0:00:00]} 48. Kc5 {[%clk 0:00:00]} 1-0


[Site "https://www.chess.com"]

[Event "Titled Tuesday Blitz August 16 Early 2022"]
[White "Shuvalova, Polina"]
[Black "Sargissyan, Sargis"]
[WhiteFideId "24171760"]
[BlackFideId "13303210"]
[WhiteElo "2510"]
[BlackElo "2209"]
[Result "1-0"]
[Round "06"]
[TimeControl "180+2"]
[Date "2022.08.18"]
[WhiteClock "0:00:00"]
[BlackClock "0:00:00"]

1. Nf3 {[%clk 0:00:00]}  Nf6 {[%clk 0:00:00]} 2. c4 {[%clk 0:00:00]}  g6 {[%clk 0:00:00]} 3. b3 {[%clk 0:00:00]}  Bg7 {[%clk 0:00:00]} 4. Bb2 {[%clk 0:00:00]}  O-O {[%clk 0:00:00]} 5. g3 {[%clk 0:00:00]}  c5 {[%clk 0:00:00]} 6. Bg2 {[%clk 0:00:00]}  Nc6 {[%clk 0:00:00]} 7. O-O {[%clk 0:00:00]}  d5 {[%clk 0:00:00]} 8. cxd5 {[%clk 0:00:00]}  Nxd5 {[%clk 0:00:00]} 9. Bxg7 {[%clk 0:00:00]}  Kxg7 {[%clk 0:00:00]} 10. d4 {[%clk 0:00:00]}  Ndb4 {[%clk 0:00:00]} 11. a3 {[%clk 0:00:00]}  Na6 {[%clk 0:00:00]} 12. d5 {[%clk 0:00:00]}  Na5 {[%clk 0:00:00]} 13. b4 {[%clk 0:00:00]}  Nc4 {[%clk 0:00:00]} 14. bxc5 {[%clk 0:00:00]}  Kg8 {[%clk 0:00:00]} 15. Qd4 {[%clk 0:00:00]}  Na5 {[%clk 0:00:00]} 16. Nbd2 {[%clk 0:00:00]}  Bg4 {[%clk 0:00:00]} 17. Qxg4 {[%clk 0:00:00]} 1-0


[Site "https://www.chess.com"]

[Event "Titled Tuesday Blitz August 16 Early 2022"]
[White "Skliarov, Viktor"]
[Black "Papayan, Oleg"]
[WhiteFideId "14106736"]
[BlackFideId "4193911"]
[WhiteElo "2384"]
[BlackElo "2246"]
[Result "1-0"]
[Round "06"]
[TimeControl "180+2"]
[Date "2022.08.18"]
[WhiteClock "0:00:00"]
[BlackClock "0:00:00"]

1. e4 {[%clk 0:00:00]}  e5 {[%clk 0:00:00]} 2. Nc3 {[%clk 0:00:00]}  Nf6 {[%clk 0:00:00]} 3. Bc4 {[%clk 0:00:00]}  Nxe4 {[%clk 0:00:00]} 4. Qh5 {[%clk 0:00:00]}  Nd6 {[%clk 0:00:00]} 5. Bb3 {[%clk 0:00:00]}  Be7 {[%clk 0:00:00]} 6. Qxe5 {[%clk 0:00:00]}  O-O {[%clk 0:00:00]} 7. Nge2 {[%clk 0:00:00]}  Nc6 {[%clk 0:00:00]} 8. Qf4 {[%clk 0:00:00]}  Bg5 {[%clk 0:00:00]} 9. Qf3 {[%clk 0:00:00]}  a5 {[%clk 0:00:00]} 10. h4 {[%clk 0:00:00]}  Bf6 {[%clk 0:00:00]} 11. Nd5 {[%clk 0:00:00]}  Be5 {[%clk 0:00:00]} 12. c3 {[%clk 0:00:00]}  a4 {[%clk 0:00:00]} 13. Bc2 {[%clk 0:00:00]}  f5 {[%clk 0:00:00]} 14. d4 {[%clk 0:00:00]}  Bf6 {[%clk 0:00:00]} 15. Nxf6+ {[%clk 0:00:00]}  Qxf6 {[%clk 0:00:00]} 16. Bg5 {[%clk 0:00:00]}  Qf7 {[%clk 0:00:00]} 17. h5 {[%clk 0:00:00]}  Nc4 {[%clk 0:00:00]} 18. h6 {[%clk 0:00:00]}  g6 {[%clk 0:00:00]} 19. Rb1 {[%clk 0:00:00]}  d5 {[%clk 0:00:00]} 20. O-O {[%clk 0:00:00]}  Nd6 {[%clk 0:00:00]} 21. Rbe1 {[%clk 0:00:00]}  Ne4 {[%clk 0:00:00]} 22. Bc1 {[%clk 0:00:00]}  Ne7 {[%clk 0:00:00]} 23. Nf4 {[%clk 0:00:00]}  c6 {[%clk 0:00:00]} 24. Nd3 {[%clk 0:00:00]}  Be6 {[%clk 0:00:00]} 25. Ne5 {[%clk 0:00:00]}  Qf6 {[%clk 0:00:00]} 26. Qd3 {[%clk 0:00:00]}  g5 {[%clk 0:00:00]} 27. Qh3 {[%clk 0:00:00]}  Ng6 {[%clk 0:00:00]} 28. Nxg6 {[%clk 0:00:00]}  Qxg6 {[%clk 0:00:00]} 29. f3 {[%clk 0:00:00]}  Nd6 {[%clk 0:00:00]} 30. Re5 {[%clk 0:00:00]} 1-0


[Site "https://www.chess.com"]

[Event "Titled Tuesday Blitz August 16 Early 2022"]
[White "Sourath Biswas"]
[Black "Shashikant, Kutwal"]
[WhiteFideId "35091484"]
[BlackFideId "5006520"]
[WhiteElo "1777"]
[BlackElo "2321"]
[Result "0-1"]
[Round "06"]
[TimeControl "180+2"]
[Date "2022.08.18"]
[WhiteClock "0:00:00"]
[BlackClock "0:00:00"]

1. d4 {[%clk 0:00:00]}  d5 {[%clk 0:00:00]} 2. Bf4 {[%clk 0:00:00]}  Nf6 {[%clk 0:00:00]} 3. e3 {[%clk 0:00:00]}  c5 {[%clk 0:00:00]} 4. Nf3 {[%clk 0:00:00]}  Nc6 {[%clk 0:00:00]} 5. Nbd2 {[%clk 0:00:00]}  Qb6 {[%clk 0:00:00]} 6. dxc5 {[%clk 0:00:00]}  Qxb2 {[%clk 0:00:00]} 7. Rb1 {[%clk 0:00:00]}  Qc3 {[%clk 0:00:00]} 8. Bb5 {[%clk 0:00:00]}  g6 {[%clk 0:00:00]} 9. e4 {[%clk 0:00:00]}  a6 {[%clk 0:00:00]} 10. Be5 {[%clk 0:00:00]}  Qxc5 {[%clk 0:00:00]} 11. Bd4 {[%clk 0:00:00]}  Qa3 {[%clk 0:00:00]} 12. Rb3 {[%clk 0:00:00]}  Qxa2 {[%clk 0:00:00]} 13. Bxc6+ {[%clk 0:00:00]}  bxc6 {[%clk 0:00:00]} 14. Qc1 {[%clk 0:00:00]}  Qa5 {[%clk 0:00:00]} 15. Bb6 {[%clk 0:00:00]}  Qa4 {[%clk 0:00:00]} 16. Qb2 {[%clk 0:00:00]}  Bg7 {[%clk 0:00:00]} 17. Ra3 {[%clk 0:00:00]}  Qb5 {[%clk 0:00:00]} 18. Rb3 {[%clk 0:00:00]}  Qa4 {[%clk 0:00:00]} 19. O-O {[%clk 0:00:00]}  dxe4 {[%clk 0:00:00]} 20. Rb4 {[%clk 0:00:00]}  Qxb4 {[%clk 0:00:00]} 21. Qxb4 {[%clk 0:00:00]}  exf3 {[%clk 0:00:00]} 22. Nxf3 {[%clk 0:00:00]}  O-O {[%clk 0:00:00]} 23. Bd4 {[%clk 0:00:00]}  a5 {[%clk 0:00:00]} 24. Qa4 {[%clk 0:00:00]}  Ba6 {[%clk 0:00:00]} 25. Re1 {[%clk 0:00:00]}  Bb5 {[%clk 0:00:00]} 26. Qa3 {[%clk 0:00:00]}  e6 {[%clk 0:00:00]} 27. Ne5 {[%clk 0:00:00]}  Nd5 {[%clk 0:00:00]} 28. Bc5 {[%clk 0:00:00]}  Bxe5 {[%clk 0:00:00]} 29. Rxe5 {[%clk 0:00:00]}  Rfd8 {[%clk 0:00:00]} 30. h4 {[%clk 0:00:00]}  Nb4 {[%clk 0:00:00]} 31. c3 {[%clk 0:00:00]}  Nd3 {[%clk 0:00:00]} 32. Re3 {[%clk 0:00:00]}  Nxc5 {[%clk 0:00:00]} 33. Qxc5 {[%clk 0:00:00]}  a4 {[%clk 0:00:00]} 34. c4 {[%clk 0:00:00]}  Rd1+ {[%clk 0:00:00]} 35. Kh2 {[%clk 0:00:00]}  Rc1 {[%clk 0:00:00]} 36. Re4 {[%clk 0:00:00]}  a3 {[%clk 0:00:00]} 37. Qe3 {[%clk 0:00:00]}  a2 {[%clk 0:00:00]} 38. Qxc1 {[%clk 0:00:00]}  a1=Q {[%clk 0:00:00]} 39. Qxa1 {[%clk 0:00:00]}  Rxa1 {[%clk 0:00:00]} 40. cxb5 {[%clk 0:00:00]}  cxb5 {[%clk 0:00:00]} 41. Rb4 {[%clk 0:00:00]}  Ra5 {[%clk 0:00:00]} 42. Kg3 {[%clk 0:00:00]}  Kf8 {[%clk 0:00:00]} 43. f4 {[%clk 0:00:00]}  Ke7 {[%clk 0:00:00]} 44. Kg4 {[%clk 0:00:00]}  h6 {[%clk 0:00:00]} 45. g3 {[%clk 0:00:00]}  f5+ {[%clk 0:00:00]} 46. Kh3 {[%clk 0:00:00]}  Kd6 {[%clk 0:00:00]} 47. Rd4+ {[%clk 0:00:00]}  Kc5 {[%clk 0:00:00]} 48. Rd7 {[%clk 0:00:00]}  b4 {[%clk 0:00:00]} 49. Rg7 {[%clk 0:00:00]}  b3 {[%clk 0:00:00]} 50. Rc7+ {[%clk 0:00:00]}  Kb4 {[%clk 0:00:00]} 51. h5 {[%clk 0:00:00]}  gxh5 {[%clk 0:00:00]} 52. Kh4 {[%clk 0:00:00]}  b2 {[%clk 0:00:00]} 0-1


[Site "https://www.chess.com"]

[Event "Titled Tuesday Blitz August 16 Early 2022"]
[White "Subelj, Jan"]
[Black "Kamsky, Gata"]
[WhiteFideId "14618583"]
[BlackFideId "2000024"]
[WhiteElo "2331"]
[BlackElo "2666"]
[Result "1/2-1/2"]
[Round "06"]
[TimeControl "180+1"]
[Date "2022.08.16"]
[WhiteClock "0:00:10"]
[BlackClock "0:00:11"]

1. Nf3 {[%clk 0:03:00]}  Nf6 {[%clk 0:02:58]} 2. g3 {[%clk 0:03:00]}  g6 {[%clk 0:02:54]} 3. Bg2 {[%clk 0:03:01]}  Bg7 {[%clk 0:02:54]} 4. O-O {[%clk 0:03:01]}  O-O {[%clk 0:02:52]} 5. c4 {[%clk 0:03:01]}  c6 {[%clk 0:02:52]} 6. Nc3 {[%clk 0:02:58]}  d5 {[%clk 0:02:52]} 7. cxd5 {[%clk 0:02:51]}  cxd5 {[%clk 0:02:52]} 8. d4 {[%clk 0:02:51]}  e6 {[%clk 0:02:52]} 9. Bf4 {[%clk 0:02:43]}  Nc6 {[%clk 0:02:49]} 10. Ne5 {[%clk 0:02:40]}  Bd7 {[%clk 0:02:48]} 11. Rc1 {[%clk 0:02:33]}  Qe7 {[%clk 0:02:47]} 12. Nxd7 {[%clk 0:02:29]}  Qxd7 {[%clk 0:02:46]} 13. e3 {[%clk 0:02:09]}  Rfc8 {[%clk 0:02:35]} 14. g4 {[%clk 0:02:06]}  Ne8 {[%clk 0:02:29]} 15. h4 {[%clk 0:02:03]}  Nd6 {[%clk 0:02:26]} 16. Qe2 {[%clk 0:02:01]}  Ne7 {[%clk 0:02:16]} 17. Rc2 {[%clk 0:01:56]}  Rc6 {[%clk 0:02:15]} 18. Rfc1 {[%clk 0:01:56]}  Rac8 {[%clk 0:02:15]} 19. h5 {[%clk 0:01:52]}  a6 {[%clk 0:02:07]} 20. h6 {[%clk 0:01:37]}  Bf8 {[%clk 0:02:06]} 21. g5 {[%clk 0:01:19]}  b5 {[%clk 0:01:51]} 22. Nb1 {[%clk 0:01:08]}  Rxc2 {[%clk 0:01:48]} 23. Rxc2 {[%clk 0:01:09]}  Rxc2 {[%clk 0:01:47]} 24. Qxc2 {[%clk 0:01:09]}  Nef5 {[%clk 0:01:37]} 25. Nd2 {[%clk 0:01:06]}  Qc8 {[%clk 0:01:28]} 26. Qb1 {[%clk 0:00:52]}  Be7 {[%clk 0:01:11]} 27. Nf3 {[%clk 0:00:50]}  f6 {[%clk 0:01:11]} 28. gxf6 {[%clk 0:00:44]}  Bxf6 {[%clk 0:01:11]} 29. b3 {[%clk 0:00:44]}  Nf7 {[%clk 0:01:09]} 30. e4 {[%clk 0:00:40]}  dxe4 {[%clk 0:00:56]} 31. Qxe4 {[%clk 0:00:41]}  N5xh6 {[%clk 0:00:54]} 32. d5 {[%clk 0:00:37]}  exd5 {[%clk 0:00:51]} 33. Qxd5 {[%clk 0:00:38]}  Nf5 {[%clk 0:00:45]} 34. a4 {[%clk 0:00:26]}  bxa4 {[%clk 0:00:42]} 35. bxa4 {[%clk 0:00:27]}  Kg7 {[%clk 0:00:42]} 36. a5 {[%clk 0:00:26]}  Qc3 {[%clk 0:00:37]} 37. Bd2 {[%clk 0:00:23]}  Qa1+ {[%clk 0:00:36]} 38. Kh2 {[%clk 0:00:22]}  Qb2 {[%clk 0:00:30]} 39. Qd3 {[%clk 0:00:12]}  Ne5 {[%clk 0:00:27]} 40. Nxe5 {[%clk 0:00:10]}  Bxe5+ {[%clk 0:00:27]} 41. f4 {[%clk 0:00:09]}  Bd4 {[%clk 0:00:25]} 42. Be1 {[%clk 0:00:08]}  Qc1 {[%clk 0:00:21]} 43. Qe4 {[%clk 0:00:07]}  Qe3 {[%clk 0:00:20]} 44. Qxe3 {[%clk 0:00:07]}  Bxe3 {[%clk 0:00:21]} 45. Bg3 {[%clk 0:00:07]}  Bd2 {[%clk 0:00:20]} 46. Bb7 {[%clk 0:00:07]}  Bxa5 {[%clk 0:00:20]} 47. Bxa6 {[%clk 0:00:07]}  Bc7 {[%clk 0:00:20]} 48. Bd3 {[%clk 0:00:07]}  Kf6 {[%clk 0:00:21]} 49. Kh3 {[%clk 0:00:07]}  h5 {[%clk 0:00:20]} 50. Bh2 {[%clk 0:00:08]}  Bd6 {[%clk 0:00:19]} 51. Kg2 {[%clk 0:00:08]}  Nd4 {[%clk 0:00:19]} 52. Kg3 {[%clk 0:00:08]}  Ne6 {[%clk 0:00:18]} 53. Kf3 {[%clk 0:00:09]}  Nd4+ {[%clk 0:00:17]} 54. Ke4 {[%clk 0:00:09]}  Nf5 {[%clk 0:00:17]} 55. Bg1 {[%clk 0:00:08]}  Kg7 {[%clk 0:00:16]} 56. Kf3 {[%clk 0:00:08]}  Be7 {[%clk 0:00:15]} 57. Bb6 {[%clk 0:00:06]}  Bf6 {[%clk 0:00:15]} 58. Bc5 {[%clk 0:00:06]}  Kf7 {[%clk 0:00:15]} 59. Bc4+ {[%clk 0:00:06]}  Kg7 {[%clk 0:00:15]} 60. Bd3 {[%clk 0:00:06]}  Bd4 {[%clk 0:00:13]} 61. Bxf5 {[%clk 0:00:06]}  Bxc5 {[%clk 0:00:13]} 62. Bd3 {[%clk 0:00:06]}  Kf6 {[%clk 0:00:13]} 63. Be4 {[%clk 0:00:06]}  Bd6 {[%clk 0:00:14]} 64. Bd3 {[%clk 0:00:06]}  Bc7 {[%clk 0:00:14]} 65. Be4 {[%clk 0:00:07]}  g5 {[%clk 0:00:13]} 66. fxg5+ {[%clk 0:00:07]}  Kxg5 {[%clk 0:00:13]} 67. Kg2 {[%clk 0:00:08]}  h4 {[%clk 0:00:13]} 68. Ba8 {[%clk 0:00:08]}  Kg4 {[%clk 0:00:13]} 69. Kh1 {[%clk 0:00:09]}  h3 {[%clk 0:00:13]} 70. Bg2 {[%clk 0:00:10]}  hxg2+ {[%clk 0:00:11]} 71. Kxg2 {[%clk 0:00:10]} 1/2-1/2


[Site "https://www.chess.com"]

[Event "Titled Tuesday Blitz August 16 Early 2022"]
[White "Suder, Jakub"]
[Black "Timofeev, Artyom"]
[WhiteFideId "1195310"]
[BlackFideId "4140419"]
[WhiteElo "2095"]
[BlackElo "2578"]
[Result "0-1"]
[Round "06"]
[TimeControl "180+1"]
[Date "2022.08.16"]
[WhiteClock "0:00:02"]
[BlackClock "0:00:08"]

1. d4 {[%clk 0:03:00]}  Nf6 {[%clk 0:02:58]} 2. c4 {[%clk 0:03:00]}  g6 {[%clk 0:02:58]} 3. Nc3 {[%clk 0:03:00]}  d5 {[%clk 0:02:59]} 4. cxd5 {[%clk 0:03:00]}  Nxd5 {[%clk 0:02:59]} 5. e4 {[%clk 0:03:01]}  Nb6 {[%clk 0:02:59]} 6. Be3 {[%clk 0:02:58]}  Bg7 {[%clk 0:02:59]} 7. h4 {[%clk 0:02:56]}  Nc6 {[%clk 0:02:51]} 8. Bb5 {[%clk 0:02:53]}  Bd7 {[%clk 0:02:49]} 9. d5 {[%clk 0:02:53]}  Ne5 {[%clk 0:02:49]} 10. Bxd7+ {[%clk 0:02:52]}  Qxd7 {[%clk 0:02:48]} 11. Bd4 {[%clk 0:02:45]}  O-O {[%clk 0:02:43]} 12. Nge2 {[%clk 0:02:40]}  c6 {[%clk 0:02:36]} 13. dxc6 {[%clk 0:02:39]}  Qxc6 {[%clk 0:02:32]} 14. f4 {[%clk 0:02:17]}  Ng4 {[%clk 0:02:14]} 15. Bxg7 {[%clk 0:02:16]}  Kxg7 {[%clk 0:02:14]} 16. Qd4+ {[%clk 0:02:01]}  e5 {[%clk 0:02:10]} 17. fxe5 {[%clk 0:01:57]}  Rad8 {[%clk 0:01:49]} 18. Nd5 {[%clk 0:01:57]}  Qe6 {[%clk 0:01:48]} 19. Nef4 {[%clk 0:01:54]}  Qxe5 {[%clk 0:01:48]} 20. Qxe5+ {[%clk 0:01:51]}  Nxe5 {[%clk 0:01:48]} 21. Nxb6 {[%clk 0:01:48]}  axb6 {[%clk 0:01:48]} 22. Ke2 {[%clk 0:01:34]}  Rd4 {[%clk 0:01:42]} 23. Ke3 {[%clk 0:01:29]}  Rfd8 {[%clk 0:01:41]} 24. Nd5 {[%clk 0:01:24]}  Rd3+ {[%clk 0:01:41]} 25. Kf4 {[%clk 0:01:21]}  f6 {[%clk 0:01:33]} 26. Rhd1 {[%clk 0:01:15]}  Kf7 {[%clk 0:01:27]} 27. Rxd3 {[%clk 0:01:05]}  Nxd3+ {[%clk 0:01:27]} 28. Ke3 {[%clk 0:01:05]}  Nxb2 {[%clk 0:01:28]} 29. Rb1 {[%clk 0:01:06]}  Nc4+ {[%clk 0:01:20]} 30. Kd4 {[%clk 0:01:04]}  Ne5 {[%clk 0:00:35]} 31. Rxb6 {[%clk 0:01:02]}  Nc6+ {[%clk 0:00:35]} 32. Kc5 {[%clk 0:00:57]}  Rd7 {[%clk 0:00:35]} 33. a4 {[%clk 0:00:51]}  Ke6 {[%clk 0:00:33]} 34. a5 {[%clk 0:00:47]}  Ke5 {[%clk 0:00:28]} 35. a6 {[%clk 0:00:34]}  bxa6 {[%clk 0:00:28]} 36. Rxc6 {[%clk 0:00:33]}  f5 {[%clk 0:00:28]} 37. Nb6 {[%clk 0:00:20]}  Rd8 {[%clk 0:00:14]} 38. exf5 {[%clk 0:00:18]}  Kxf5 {[%clk 0:00:14]} 39. Rd6 {[%clk 0:00:17]}  Rxd6 {[%clk 0:00:12]} 40. Kxd6 {[%clk 0:00:14]}  Kg4 {[%clk 0:00:13]} 41. Nd5 {[%clk 0:00:05]}  Kxh4 {[%clk 0:00:12]} 42. Nf6 {[%clk 0:00:05]}  h5 {[%clk 0:00:11]} 43. Ne4 {[%clk 0:00:04]}  Kg4 {[%clk 0:00:11]} 44. Kc5 {[%clk 0:00:01]}  Kf4 {[%clk 0:00:11]} 45. Nd2 {[%clk 0:00:01]}  Kg3 {[%clk 0:00:11]} 46. Kb6 {[%clk 0:00:01]}  Kxg2 {[%clk 0:00:11]} 47. Kxa6 {[%clk 0:00:02]}  h4 {[%clk 0:00:11]} 48. Nc4 {[%clk 0:00:01]}  h3 {[%clk 0:00:09]} 49. Ne3+ {[%clk 0:00:02]}  Kf2 {[%clk 0:00:08]} 50. Ng4+ {[%clk 0:00:02]}  Kg3 {[%clk 0:00:08]} 51. Ne3 {[%clk 0:00:02]}  h2 {[%clk 0:00:08]} 0-1


[Site "https://www.chess.com"]

[Event "Titled Tuesday Blitz August 16 Early 2022"]
[White "Taboas Rodriguez, Daniel"]
[Black "Arslanov, Shamil"]
[WhiteFideId "2208466"]
[BlackFideId "4192826"]
[WhiteElo "2359"]
[BlackElo "2410"]
[Result "0-1"]
[Round "06"]
[TimeControl "180+2"]
[Date "2022.08.18"]
[WhiteClock "0:00:00"]
[BlackClock "0:00:00"]

1. d4 {[%clk 0:00:00]}  Nf6 {[%clk 0:00:00]} 2. Nf3 {[%clk 0:00:00]}  c5 {[%clk 0:00:00]} 3. d5 {[%clk 0:00:00]}  e6 {[%clk 0:00:00]} 4. c4 {[%clk 0:00:00]}  b5 {[%clk 0:00:00]} 5. Bg5 {[%clk 0:00:00]}  exd5 {[%clk 0:00:00]} 6. cxd5 {[%clk 0:00:00]}  d6 {[%clk 0:00:00]} 7. e4 {[%clk 0:00:00]}  a6 {[%clk 0:00:00]} 8. Nbd2 {[%clk 0:00:00]}  Be7 {[%clk 0:00:00]} 9. Bf4 {[%clk 0:00:00]}  O-O {[%clk 0:00:00]} 10. a4 {[%clk 0:00:00]}  Re8 {[%clk 0:00:00]} 11. axb5 {[%clk 0:00:00]}  Bf8 {[%clk 0:00:00]} 12. Bd3 {[%clk 0:00:00]}  Nxd5 {[%clk 0:00:00]} 13. Bg5 {[%clk 0:00:00]}  Be7 {[%clk 0:00:00]} 14. O-O {[%clk 0:00:00]}  Bxg5 {[%clk 0:00:00]} 15. exd5 {[%clk 0:00:00]}  Bg4 {[%clk 0:00:00]} 16. bxa6 {[%clk 0:00:00]}  Bxd2 {[%clk 0:00:00]} 17. Qxd2 {[%clk 0:00:00]}  Bxf3 {[%clk 0:00:00]} 18. gxf3 {[%clk 0:00:00]}  Nd7 {[%clk 0:00:00]} 19. Qf4 {[%clk 0:00:00]}  Ne5 {[%clk 0:00:00]} 20. Bb5 {[%clk 0:00:00]}  Rf8 {[%clk 0:00:00]} 21. Kh1 {[%clk 0:00:00]}  Qb6 {[%clk 0:00:00]} 22. Qa4 {[%clk 0:00:00]}  Ra7 {[%clk 0:00:00]} 23. f4 {[%clk 0:00:00]}  Ng6 {[%clk 0:00:00]} 24. Rg1 {[%clk 0:00:00]}  Rb8 {[%clk 0:00:00]} 25. Bf1 {[%clk 0:00:00]}  Qxb2 {[%clk 0:00:00]} 26. f5 {[%clk 0:00:00]}  Ne5 {[%clk 0:00:00]} 27. f6 {[%clk 0:00:00]}  g6 {[%clk 0:00:00]} 28. Qf4 {[%clk 0:00:00]}  Nd7 {[%clk 0:00:00]} 29. Bh3 {[%clk 0:00:00]}  Nxf6 {[%clk 0:00:00]} 30. Qxd6 {[%clk 0:00:00]}  Ne4 {[%clk 0:00:00]} 31. Rab1 {[%clk 0:00:00]}  Nxd6 {[%clk 0:00:00]} 32. Rxb2 {[%clk 0:00:00]}  Rxb2 {[%clk 0:00:00]} 33. Ra1 {[%clk 0:00:00]}  Rb6 {[%clk 0:00:00]} 0-1


[Site "https://www.chess.com"]

[Event "Titled Tuesday Blitz August 16 Early 2022"]
[White "Tarasova, Viktoriya"]
[Black "Cramling Bellon, Anna"]
[WhiteFideId "4175840"]
[BlackFideId "32009232"]
[WhiteElo "2226"]
[BlackElo "2065"]
[Result "1-0"]
[Round "06"]
[TimeControl "180+2"]
[Date "2022.08.18"]
[WhiteClock "0:00:00"]
[BlackClock "0:00:00"]

1. d4 {[%clk 0:00:00]}  Nf6 {[%clk 0:00:00]} 2. c4 {[%clk 0:00:00]}  e6 {[%clk 0:00:00]} 3. Nc3 {[%clk 0:00:00]}  d5 {[%clk 0:00:00]} 4. cxd5 {[%clk 0:00:00]}  exd5 {[%clk 0:00:00]} 5. Bg5 {[%clk 0:00:00]}  c6 {[%clk 0:00:00]} 6. e3 {[%clk 0:00:00]}  Be7 {[%clk 0:00:00]} 7. Bd3 {[%clk 0:00:00]}  O-O {[%clk 0:00:00]} 8. Nge2 {[%clk 0:00:00]}  h6 {[%clk 0:00:00]} 9. Bh4 {[%clk 0:00:00]}  Bg4 {[%clk 0:00:00]} 10. f3 {[%clk 0:00:00]}  Bh5 {[%clk 0:00:00]} 11. Qc2 {[%clk 0:00:00]}  Nbd7 {[%clk 0:00:00]} 12. O-O-O {[%clk 0:00:00]}  c5 {[%clk 0:00:00]} 13. g4 {[%clk 0:00:00]}  c4 {[%clk 0:00:00]} 14. Bf5 {[%clk 0:00:00]}  Bg6 {[%clk 0:00:00]} 15. Bxg6 {[%clk 0:00:00]}  fxg6 {[%clk 0:00:00]} 16. Qxg6 {[%clk 0:00:00]}  b5 {[%clk 0:00:00]} 17. Nf4 {[%clk 0:00:00]}  Rf7 {[%clk 0:00:00]} 18. Nce2 {[%clk 0:00:00]}  Nf8 {[%clk 0:00:00]} 19. Qc2 {[%clk 0:00:00]}  b4 {[%clk 0:00:00]} 20. Kb1 {[%clk 0:00:00]}  Rb8 {[%clk 0:00:00]} 21. Bg3 {[%clk 0:00:00]}  b3 {[%clk 0:00:00]} 22. axb3 {[%clk 0:00:00]}  cxb3 {[%clk 0:00:00]} 23. Qd2 {[%clk 0:00:00]}  Bb4 {[%clk 0:00:00]} 24. Qd3 {[%clk 0:00:00]}  Qa5 {[%clk 0:00:00]} 25. Qxb3 {[%clk 0:00:00]}  Ba3 {[%clk 0:00:00]} 26. Qxb8 {[%clk 0:00:00]}  Nd7 {[%clk 0:00:00]} 27. Qb3 {[%clk 0:00:00]}  Bb4 {[%clk 0:00:00]} 28. Nxd5 {[%clk 0:00:00]}  Bc3 {[%clk 0:00:00]} 29. Nexc3 {[%clk 0:00:00]} 1-0


[Site "https://www.chess.com"]